Cogmind - Beta 16 @@@ ROGUE MODE // 2026.01.12 @ 19:57:25 Player: Tom Fryers Result: Destroyed by D-53 Grenadier with Mini Grenade Launcher Performance ------------- Evolutions (1) 500 Regions Visited (4) 800 Robots Destroyed (29) 145 Value Destroyed (892) 892 Prototype IDs (2) 40 Alien Tech Used (0) 0 Bonus (0) 0 TOTAL SCORE: 2377 Bonus ------- None Cogmind --------- Core Integrity 0/400 Matter 274/300 Energy 100/100 System Corruption 0% Temperature Cool (0) Movement Core (200) Ox3 Location -9/Mines Parts ------- > --- POWER (1) -------- (None) > --- PROPULSION (4) --- (None) > --- UTILITY (2) ------ Medium Storage Unit Visual Processing Unit > --- WEAPON (2) ------- (None) > --- INVENTORY (10) --- Ion Engine Light Ion Engine Medium Storage Unit Weight Redist. System Weight Redist. System Hardened Light Armor Plating Hardened Light Armor Plating Heavy Assault Rifle Peak State ------------ > --- POWER ------------ Improved Ion Engine > --- PROPULSION ------- Aluminum Leg Aluminum Leg Aluminum Leg Aluminum Leg > --- UTILITY ---------- Medium Storage Unit Visual Processing Unit > --- WEAPON ----------- Beam Rifle Heavy Assault Rifle > --- INVENTORY -------- Weight Redist. System Weight Redist. System Grenade Launcher [Rating: 13] Favorites ----------- Power Ion Engine Engine Ion Engine Propulsion Aluminum Leg Treads Light Treads Leg Aluminum Leg Utility Medium Storage Unit Device Weight Redist. System Storage Medium Storage Unit Processor Visual Processing Unit Protection Light Armor Plating Weapon Particle Gun Energy Gun Particle Gun Ballistic Gun Heavy Assault Rifle Launcher Grenade Launcher Special Weapon Mining Laser Build | -11 -10 -10 -9 -9 ------- Run | Yrd Mat Min Mat Min Slots Evolved 2 | . . . 2 . Power . | . . . . . Propulsion 2 | . . . 2 . Utility . | . . . . . Weapon . | . . . . . Parts Attached 36 | 6 7 9 12 2 Power 6 | 1 1 2 1 1 Engine 6 | 1 1 2 1 1 Core . | . . . . . Reactor . | . . . . . Propulsion 11 | 2 2 3 4 . Treads 2 | 2 . . . . Leg 9 | . 2 3 4 . Wheel . | . . . . . Hover . | . . . . . Flight . | . . . . . Utility 7 | 1 2 1 3 . Device 1 | . . 1 . . Storage 3 | 1 1 . 1 . Processor 1 | . . . 1 . Hackware . | . . . . . Protection 2 | . 1 . 1 . Artifact . | . . . . . Weapon 12 | 2 2 3 4 1 Energy Gun 6 | 2 1 1 2 . Energy Cannon . | . . . . . Ballistic Gun 1 | . . . 1 . Ballistic Cannon . | . . . . . Launcher 3 | . 1 . 1 1 Special Weapon 2 | . . 2 . . Impact Weapon . | . . . . . Slashing Weapon . | . . . . . Piercing Weapon . | . . . . . Special Melee Weapon . | . . . . . Unidentified Prototypes . | . . . . . Parts Lost 26 | . 2 9 6 9 Power 5 | . . 2 1 2 Propulsion 9 | . . 2 4 3 Utility 2 | . 1 . 1 . Weapon 10 | . 1 5 . 4 Highest Loss Streak 7 | . 2 6 4 7 To Critical Strikes . | . . . . . Average Backups 7 | 3 6 8 6 9 Power 1 | . 1 1 1 1 Propulsion 2 | 1 2 4 . . Utility 2 | . 1 1 3 5 Weapon 1 | . 1 1 1 3 Tool/Special . | . . . . . Unused Backups 9 | . 1 1 . 7 Power 2 | . . . . 2 Propulsion 1 | . . 1 . . Utility 4 | . . . . 4 Weapon 2 | . 1 . . 1 Tool/Special . | . . . . . Average Slot Usage (%) 85 | . 86 91 79 77 Engine 12 | . 14 13 10 10 Treads 5 | . 22 . . . Leg 23 | . 5 27 32 23 Device 5 | . . 14 1 . Storage 12 | . 14 14 11 11 Processor 3 | . . . 6 11 Energy Gun 15 | . 21 18 7 10 Ballistic Gun 3 | . . . 7 10 Launcher 1 | . 6 . 1 . Peak Build Rating 13 | 6 9 11 13 13 Average Rating 9 | 3 7 9 10 11 On Entrance 6 | . 6 8 6 13 Avg Prop Armor Cover (%) . | . . . . . Naked Turns . | . . . . . Heaviest Build 23 | 11 23 21 23 23 Greatest Support 40 | 40 40 26 40 30 Greatest Overweight (x) 3 | . . 3 1 1 Average Overweight (x) . | . . . . . Largest Inventory Capacity 10 | 8 10 10 10 10 Average Capacity 9 | 6 8 10 10 10 Most Carried 10 | 6 10 10 10 10 Average Carried 7 | 3 6 8 6 9 Final Capacity 10 | 8 10 10 10 10 Final Carried 10 | 4 10 5 10 8 Class Distribution -------------------- 63% | Mutant 36% | Scavenger-Mutant Dominant Class ---------------- Mutant | -10/Materials Mutant | -10/Mines Scavenger-Mutant | -9/Materials Scavenger-Mutant | -9/Mines Resources | -11 -10 -10 -9 -9 ----------- Run | Yrd Mat Min Mat Min Matter Collected 794 | 208 114 161 254 57 Remotely . | . . . . . Salvage Created 840 | . 220 193 383 44 Parts 49 | . 9 13 23 4 Haulers Intercepted 1 | . 1 . . . Recyclers Shooed . | . . . . . Parts Field Recycled . | . . . . . Retrieved Matter . | . . . . . Parts Self-Destructed . | . . . . . Prevented . | . . . . . Parts Restored . | . . . . . Kills | -11 -10 -10 -9 -9 ------- Run | Yrd Mat Min Mat Min Combat Hostiles Destroyed 26 | . 5 7 11 3 Guns 17 | . 2 6 6 3 AOE 8 | . 3 . 5 . Classes Destroyed 6 | . 3 1 2 . Hauler 1 | . 1 . . . Recycler 1 | . 1 . . . Watcher 1 | . . . 1 . Swarmer 6 | . . 3 . 3 Grunt 17 | . 5 4 8 . Sentry 3 | . . . 3 . Best Kill Streak 6 | . 2 3 6 2 Combat Bots Only 5 | . 2 3 5 2 Max Kills in Single Turn 2 | . 1 1 2 1 Gunslinging . | . . . . . Exploded 1 | . 1 . 1 . Melee . | . . . . . Uniques/NPCs Destroyed . | . . . . . Combat | -11 -10 -10 -9 -9 -------- Run | Yrd Mat Min Mat Min Hostile Shots Fired 251 | . 37 93 76 45 Missed 66 | . 10 18 26 12 Hits 185 | . 27 75 50 33 Projectile 185 | . 27 75 50 33 AOE 16 | . . . . 16 Critical Strikes 4 | . . 1 3 . Damage Taken 2729 | . 352 890 723 764 Core 608 | . 10 198 104 296 Absorbed by Shields . | . . . . . Core Remaining (%) 58 | 100 . 16 . . Volleys Fired 100 | . 18 47 22 13 Largest 2 | . 2 2 2 2 Hottest 130 | . 115 130 79 79 Shots Fired 167 | . 36 67 38 26 Gun 142 | . 27 59 32 24 Cannon . | . . . . . Launcher 17 | . 9 . 6 2 Special 8 | . . 8 . . Kinetic 28 | . . . 16 12 Thermal 122 | . 27 67 16 12 Explosive 17 | . 9 . 6 2 Electromagnetic . | . . . . . Robot Hit Streak 8 | . 8 7 7 3 Robot Miss Streak 9 | . 2 9 4 5 Penetration Max . | . . . . . Secondary Targets 3 | . . . 1 2 Max Gunslinging Chain 1 | . . . 1 1 Shots Hit Robots 87 | . 27 26 26 8 Core Hits 58 | . 17 11 23 7 Critical Kills . | . . . . . Critical Parts Destroyed . | . . . . . Critical Strikes 5 | . 1 2 2 . Burn 5 | . 1 2 2 . Melee Attacks . | . . . . . Impact . | . . . . . Slashing . | . . . . . Piercing . | . . . . . Sneak Attacks . | . . . . . Combat Hostiles . | . . . . . Follow-up Attacks . | . . . . . Damage Inflicted 2339 | . 790 400 986 163 Guns 1036 | . 258 368 320 90 Cannons . | . . . . . Explosions 1269 | . 532 . 664 73 Melee . | . . . . . Ramming 10 | . . 8 2 . Kinetic 159 | . . . 144 15 Thermal 901 | . 258 392 176 75 Explosive 1269 | . 532 . 664 73 Electromagnetic . | . . . . . Impact . | . . . . . Slashing . | . . . . . Piercing . | . . . . . Highest Corruption . | . . . . . Average Corruption . | . . . . . Corruption Purged . | . . . . . Corruption Blocked . | . . . . . Overload Shots . | . . . . . Overflow Damage 180 | . 9 . 171 . Projectiles . | . . . . . Explosions 180 | . 9 . 171 . Melee . | . . . . . Knockbacks . | . . . . . Impact . | . . . . . Kinetic . | . . . . . Secondary . | . . . . . Self-Inflicted Damage 71 | . . . 71 . Shots 3 | . . . 3 . Rammed . | . . . . . Targets Rammed 3 | . . 1 2 . Kicked 3 | . . 1 2 . Crushed . | . . . . . Highest Temperature 405 | . 331 405 96 46 Average Temperature 125 | . 104 176 34 21 Received Heat Transfer 903 | . 195 336 372 . Effects 7 | . . 7 . . Shutdowns 1 | . . 1 . . Energy Bleed 1 | . . 1 . . Interference 4 | . . 4 . . Matter Decay 1 | . . 1 . . Siege Activations . | . . . . . Martial Activations . | . . . . . Shielding Activations . | . . . . . Robots Disrupted . | . . . . . Combat Hostiles . | . . . . . Robots Corrupted . | . . . . . Combat Hostiles . | . . . . . Parts Fried . | . . . . . Impact Corruptions . | . . . . . Robots Melted 1 | . . 1 . . Combat Hostiles 1 | . . 1 . . Parts Melted 5 | . . 2 2 1 Heat Transferred 2714 | . 777 1160 592 185 Parts Sabotaged . | . . . . . Parts Stolen . | . . . . . Parts Stripped . | . . . . . Power Chain Reactions . | . . . . . Alert | -11 -10 -10 -9 -9 ------- Run | Yrd Mat Min Mat Min Maximum Alert Level 1 | . . . 1 . Low Security (%) 97 | 100 100 100 89 100 Level 1 2 | . . . 10 . Level 2 . | . . . . . Level 3 . | . . . . . Level 4 . | . . . . . Level 5 . | . . . . . High Security . | . . . . . Max Security . | . . . . . Peak Influence 202 | . 82 82 202 83 Initial 63 | . . 12 11 63 Average 55 | . 44 20 128 50 Influence Increases 856 | . 192 219 372 73 Destroy 0b10 Robot/C 520 | . 100 140 220 60 Destroy 0b10 Robot/NC 15 | . 10 . 5 . Destroy Leader 134 | . 22 30 72 10 Successful Hack 5 | . 5 . . . Disable Machine 45 | . 15 . 30 . Destroy Structure 92 | . 40 4 45 3 Lose Combat Pursuer 45 | . . 45 . . Influence Decreases 856 | . 160 221 240 235 Entered New Map 138 | . . 20 19 99 Time Decay 580 | . 140 179 161 100 Lost Part 138 | . 20 22 60 36 Squads Dispatched 5 | . 1 . 4 . Investigation 1 | . . . 1 . Extermination . | . . . . . Reinforcement 4 | . 1 . 3 . Assault . | . . . . . Garrison . | . . . . . Intercept . | . . . . . Searches Triggered . | . . . . . Construction Impeded 1 | . . . 1 . Haulers Reinforced . | . . . . . Active Scanning Responses . | . . . . . Cargo Convoy Interrupts . | . . . . . Stealth | -11 -10 -10 -9 -9 --------- Run | Yrd Mat Min Mat Min Distress Signals 2 | . . . 2 . Communications Jammed . | . . . . . Distress Signals . | . . . . . Times Spotted 45 | . 5 11 20 9 Peak Tracking Total 8 | . 2 3 8 5 Tactical Retreats 2 | . . 2 . . Traps | -11 -10 -10 -9 -9 ------- Run | Yrd Mat Min Mat Min Traps Triggered 1 | . . . 1 . Indirectly . | . . . . . Trap Hack Attempts . | . . . . . Triggered . | . . . . . Disarmed . | . . . . . Reprogrammed . | . . . . . Reused . | . . . . . Traps Extracted . | . . . . . Installed . | . . . . . Triggered . | . . . . . Machines | -11 -10 -10 -9 -9 ---------- Run | Yrd Mat Min Mat Min Machines Disabled 3 | . 1 . 2 . Max in Single Turn 1 | . 1 . 1 . Machines Repaired . | . . . . . Machines Dismantled . | . . . . . Machines Sabotaged . | . . . . . Overloaded Fab Kills . | . . . . . Hacking | -11 -10 -10 -9 -9 --------- Run | Yrd Mat Min Mat Min Machines Accessed 3 | . 2 . 1 . Terminals 3 | . 2 . 1 . Fabricators . | . . . . . Repair Stations . | . . . . . Recycling Units . | . . . . . Scanalyzers . | . . . . . Garrison Access . | . . . . . Total Hacks 7 | . 6 . 1 . Successful 4 | . 4 . . . Failed 3 | . 2 . 1 . Catastrophic 2 | . 1 . 1 . Database Lockouts . | . . . . . Manual . | . . . . . Terminals 7 | . 6 . 1 . Fabricators . | . . . . . Repair Stations . | . . . . . Recycling Units . | . . . . . Scanalyzers . | . . . . . Garrison Access . | . . . . . Terminal Hacks 4 | . 4 . . . Prototype ID Bank 1 | . 1 . . . Investigation Status 1 | . 1 . . . Reinforcement Status 1 | . 1 . . . Hauler Manifests 1 | . 1 . . . Fabricator Hacks . | . . . . . Repair Station Hacks . | . . . . . Recycling Unit Hacks . | . . . . . Scanalyzer . | . . . . . Garrison Access Hacks . | . . . . . Unauthorized Hacks . | . . . . . Terminals . | . . . . . Fabricators . | . . . . . Repair Stations . | . . . . . Recycling Units . | . . . . . Scanalyzers . | . . . . . Garrison Access . | . . . . . Data Cores Recovered . | . . . . . Used . | . . . . . Hacking Detections 2 | . 1 . 1 . Full Trace Events . | . . . . . Feedback Events . | . . . . . Feedback Blocked . | . . . . . Robot Schematics Acquired . | . . . . . Robots Built . | . . . . . Authchips . | . . . . . Time . | . . . . . Total Robot Build Rating . | . . . . . Part Schematics Acquired . | . . . . . Parts Built . | . . . . . Authchips . | . . . . . Time . | . . . . . Total Part Build Rating . | . . . . . Part Studies Acquired . | . . . . . Parts Repaired . | . . . . . Time . | . . . . . Parts Recycled . | . . . . . Recycled Matter . | . . . . . Retrieved Matter . | . . . . . Retrieved Components . | . . . . . Parts Scanalyzed . | . . . . . Part Schematics Acquired . | . . . . . Parts Damaged . | . . . . . Bothacking | -11 -10 -10 -9 -9 ------------ Run | Yrd Mat Min Mat Min Used RIF Installer . | . . . . . Robots Hacked . | . . . . . Non-combat . | . . . . . Combat . | . . . . . Robot Hacks Applied . | . . . . . Relay Couplers Released . | . . . . . Fabnet Peak Effective % . | . . . . . Robots Rewired . | . . . . . Allies Hacked . | . . . . . Hacks Repelled . | . . . . . Allies | -11 -10 -10 -9 -9 -------- Run | Yrd Mat Min Mat Min Total Allies . | . . . . . Largest Group . | . . . . . Highest-Rated Group . | . . . . . Highest-Rated Ally . | . . . . . Total Orders . | . . . . . Ally Attacks . | . . . . . Total Damage . | . . . . . Kills . | . . . . . Allies Corrupted . | . . . . . Allies Melted . | . . . . . Intel | -11 -10 -10 -9 -9 ------- Run | Yrd Mat Min Mat Min Active Infowar (turns) 458 | . . . 242 216 Optics 458 | . . . 242 216 Robot Analysis Total . | . . . . . Derelict Logs Recovered 2 | . . 2 . . Drone Launches . | . . . . . Drone Recoveries . | . . . . . Exploration | -11 -10 -10 -9 -9 ------------- Run | Yrd Mat Min Mat Min Turns Passed 1580 | 83 339 548 394 216 Spaces Moved 870 | 49 176 325 217 103 Core 9 | 8 . 1 . . Treads 166 | 41 125 . . . Legs 695 | . 51 324 217 103 Wheels . | . . . . . Hover . | . . . . . Flight . | . . . . . Fastest Speed 50 | 50 120 120 120 120 Average Speed 137 | 142 148 121 137 166 Slowest Speed 200 | 160 160 200 190 190 Overloaded Moves . | . . . . . Propulsion Burnouts . | . . . . . Robots Hopped . | . . . . . Potential Cave-ins . | . . . . . Cave-ins Triggered . | . . . . . Exploration Rate (%) 32 | 4 32 65 33 30 Regions Visited 4 Branch Regions 2 Pre-discovered Areas 2 | . . 2 . . Known Exits Taken . | . . . . . Unknown Exits Taken 4 | 1 1 1 1 . Scrap Searched . | . . . . . Spaces Dug 1 | . . 1 . . Terrain Destroyed 106 | . 48 5 50 3 Melee . | . . . . . Projectile 5 | . . 5 . . AOE 101 | . 48 . 50 3 Terrain Rammed . | . . . . . Walls Destroyed . | . . . . . Machines Disabled . | . . . . . Actions | -11 -10 -10 -9 -9 --------- Run | Yrd Mat Min Mat Min Total 1071 | 62 219 394 274 122 Wait 9 | . . 5 4 . Move 866 | 48 175 324 216 103 Hop . | . . . . . Pick Up 40 | 8 11 4 15 2 Fast Attach 3 | 2 1 . . . Attach 27 | 4 3 8 9 3 Detach . | . . . . . Swap 12 | . 5 3 4 . Drop 11 | . 6 2 2 1 Fire 100 | . 18 47 22 13 Melee . | . . . . . Ram . | . . . . . Kick 3 | . . 1 2 . Crush . | . . . . . Escape Stasis . | . . . . . Rewire . | . . . . . Trap . | . . . . . Miscellaneous . | . . . . . Route ------- -11/Scrapyard -10/Materials -10/Mines -9/Materials -9/Mines (discovered 1 exit: [*Mat]) History --------- Turn | Location | Event 6 | -11/Scrapyard | Discovered new exit (range 14) 84 | -11/Scrapyard | Entered Materials 212 | -10/Materials | Discovered new exit (range 13) 308 | -10/Materials | Build established: Mutant 423 | -10/Materials | Entered Mines 515 | -10/Mines | Learned location of Zion (-6) 569 | -10/Mines | Learned location of Storage (-7) 696 | -10/Mines | Excavation squad dispatched 696 | -10/Mines | A large section of the Mines collapsed 819 | -10/Mines | Core integrity fell below 50% 875 | -10/Mines | Core integrity fell below 20% 891 | -10/Mines | Lost 6 parts (1p2n3w) 900 | -10/Mines | Discovered new exit (range 15) 971 | -10/Mines | Entered Materials 971 | -9/Materials | Evolved 2 slots: Propulsion x2 1112 | -9/Materials | Lost 4 parts (1p2n1u) 1357 | -9/Materials | Discovered new exit (range 5) 1365 | -9/Materials | Entered Mines 1392 | -9/Mines | Discovered new exit (range 11) 1394 | -9/Mines | Build established: Scavenger-Mutant 1402 | -9/Mines | Received a Rocket Launcher from a helpful Derelict 1537 | -9/Mines | Assembled infested the area 1542 | -9/Mines | Assisted by a Guerilla fighting off Assembled 1569 | -9/Mines | Core integrity fell below 50% 1578 | -9/Mines | Core integrity fell below 20% 1581 | -9/Mines | Destroyed by D-53 Grenadier with Mini Grenade Launcher Last Messages --------------- A derelict emerges from the shadows: "You need to get out of here! I've been tracking a group of Assembled to figure out where they're coming from, and they're closing on this area, come on!" C-45 Heavy ARC bursts open, deploying its payload. D-53 Grenadier unfolds itself. Hvy. Assault Rifle destroyed. K-01 Serf destroyed. Aluminum Leg destroyed. Beam Rifle destroyed. Aluminum Leg destroyed. Ion Engine destroyed. HV Slug penetrates S-10 Pest. S-10 Pest suffers critical hit (Destroy). S-10 Pest destroyed. Grenade Launcher destroyed. S-10 Pest destroyed. Rocket Launcher destroyed. Map ----- +----------------------------------------------------+ | ?????????????????????????????????????????????????? | | ???????????????###############???????????????????? | | ??????????????## #??????####?????????? | | ?????????????## #?????## ##????????? | | ?????????????# ### #???### ##???????? | | ????????????# ### ## #?# ##### < ######### | | ????????????# #??# ## #?# [ | | ????????????### ???# ## #?# | | ??????????????#????# #?###### [### #### | | ?????????????????# ####??????# ### #??? | | ?????????????????# ###?????????## %= #??? | | ???????????????? ?????????????## ## | | ???????????????###???????????????# #???### | | ?????????????????????????????????## ##????? | | ??????????????????????????????????## ##???? | | ???????????????????????????????????# ##??? | | ???????????????????????????????????# #??? | | ???????????????????????????????????## ##??? | | ????????????????????????????????????## ##???? | | ??????????????????????????#####??????# ##????? | | ????????????????????####### ##????## #?????? | | ????????????????????# #????# #?????# | | ????????????????????# ###??# ##???# | | ????????????????????# #### #### | | ???????????????????## ## | | ???????????????????# @ ### ## | | ???????????????????# ##?# ###? | | ???????????????????# #??## #??? | | ???????????????????# # d #?## #??? | | ?????????????????? ?## d ### ##?? | | ?????????????????#???? #### ## #?? | | ?????????????????????=%[???## % #?? | | ?????????????????????#=%????## ##?? | | ?????????????????????=%*?????## # ####??? | | ?????????????????????; ???????#### ##?????? | | ???????????????????? % ??????????## ##??????? | | ???????????????????? ???????????#### ##???????? | | ??????????????????? ???????????????####????????? | | ???????????????????# ???????????????????????????? | | ???????????????????###???????????????????????????? | | ?????????????????????????????????????????????????? | | ?????????????????????????????????????????????????? | | ?????????????????????????????????????????????????? | | ?????????????????????????????????????????????????? | | ?????????????????????????????????????????????????? | | ?????????????????????????????????????????????????? | | ?????????????????????????????????????????????????? | | ?????????????????????????????????????????????????? | | ?????????????????????????????????????????????????? | | ?????????????????????????????????????????????????? | +----------------------------------------------------+ Best States ------------- Heat Dissipation 28 Energy Generation 12 Energy Capacity 265 Matter Stores 300 Matter Capacity 300 Sight Range 18 Terrain Scan Density 10 Additional Mass Support 6 Armor Coverage 225 Evasion (%) 55 Recoil Reduction 2 Item Schematics ----------------- None Robot Schematics ------------------ None Fabricated ------------ Nothing Repaired ---------- Nothing Studied --------- None Alien Tech Used ----------------- None Achievements -------------- None Challenges ------------ None Game ------ Seed HelicalDeflectorAirjet Manual? 0 Play Time 00:27:53 Cumulative 8.2 hours Start 2026.01.12 @ 19:31:58 End 2026.01.12 @ 19:57:25 Sessions 1 Manual Loads 0 Difficulty Rogue Special Mode None Game No. 11 Rogue 11 Adventurer 0 Explorer 0 Win Type - Total 0 Types 0/0/0/0/0/0/0/0/0/0 Lore% 3 Gallery% 11 Achievement% 12 Wizard Run 0 Options --------- Layout 1 ASCII 1 Keyboard 0 Movement Mouse Keybinds 0 Fullscreen 1 Font 48/Terminus++ Map View 50x35 Zoom Use 0% Tactical HUD 0 Map Filters NONE Filters NONE Steam 1 RUN: 320832e3-133f-4426-8c2b-675be1a57a7b